bitfinex-derivatives/quotes_SOLF0:USTF0_20260110
["timestamp","ask_amount","ask_price","bid_price","bid_amount"]
[1768037017602,0.37354768,136.15,136.1,6.6213]
[1768037020303,0.05343082,136.15,136.1,6.6213]
[1768037020507,0.05343082,136.15,136.11,6.6207]
[1768037025505,0.05343082,136.15,136.09,94.59369014]
[1768037032325,0.05343082,136.15,136.1,6.6213]
[1768037032515,0.05343082,136.15,136.09,87.97229014]
[1768037033822,0.05343082,136.15,136.11,6.6207]
[1768037097071,0.05343082,136.15,136.09,86.82]
[1768037097270,0.32304683,136.19,136.09,86.82]
[1768037097472,5.50540012,136.18,136.12,0.05023358]
[1768037097671,5.50540012,136.17,136.12,0.05023358]
[1768037097876,0.32304683,136.19,136.12,0.05023358]
[1768037098168,5.50500794,136.18,136.12,0.05023358]
[1768037098358,6.94004683,136.19,136.12,0.05023358]
[1768037098560,5.50454531,136.18,136.12,0.05023358]
[1768037098762,8.40004683,136.19,136.12,0.05023358]
[1768037098964,5.50454531,136.18,136.12,0.05023358]
[1768037099166,8.40004683,136.19,136.12,0.05023358]
[1768037099366,5.50423387,136.18,136.12,0.05023358]
[1768037099565,8.40004683,136.19,136.12,0.05023358]
[1768037099768,5.8272807,136.18,136.12,0.05023358]
[1768037099964,0.32304683,136.18,136.12,0.05023358]
[1768037102770,108.9,136.21,136.12,0.05023358]
[1768037102771,0.32304683,136.2,136.12,0.05023358]
[1768037103479,0.32304683,136.2,136.11,102.9881]
[1768037103674,0.32304683,136.2,136.15,0.04801882]
[1768037118001,0.30648984,136.23,136.15,0.04801882]
[1768037118203,0.30648984,136.22,136.15,0.04801882]
[1768037118601,0.30648984,136.22,136.15,6.6187]
[1768037118903,0.30648984,136.22,136.17,0.04853029]
[1768037125101,0.30648984,136.22,136.17,6.66633029]
[1768037135517,0.30648984,136.22,136.17,0.04853029]
[1768037149929,0.32914676,136.21,136.17,0.04853029]
[1768037151731,0.30344771,136.2,136.14,86.8]
[1768037151932,0.35995882,136.2,136.14,86.8]
[1768037161235,0.35995882,136.2,136.13,6.6195]
[1768037165138,0.32321937,136.19,136.13,6.6195]
[1768037172947,0.32321937,136.19,136.11,6.6205]
[1768037173747,0.04962415,136.16,136.11,6.6205]
[1768037174246,0.04962415,136.16,136.12,6.6202]
[1768037175850,6.6165,136.2,136.13,6.6198]
[1768037176335,6.6165,136.2,136.13,6.66997031]
[1768037181654,0.32321937,136.21,136.13,0.05017031]
[1768037182752,0.32321937,136.21,136.15,6.6188]
[1768037183750,0.32321937,136.21,136.17,0.05412483]
[1768037203970,0.36230527,136.2,136.13,6.6194]
[1768037214576,0.30304172,136.19,136.13,6.6194]
[1768037217281,0.30304172,136.19,136.11,6.6204]
[1768037218079,0.05616721,136.16,136.11,6.6204]
[1768037220786,6.6161,136.21,136.13,6.6197]
[1768037221081,6.91914172,136.21,136.12,0.0552938]
[1768037221483,6.91914172,136.21,136.11,102.9915]
[1768037221782,0.30304172,136.2,136.11,102.9915]
[1768037222177,0.30304172,136.2,136.15,0.05608064]
[1768037234490,0.36715835,136.19,136.15,0.05608064]
[1768037257714,0.36715835,136.19,136.12,6.62]
[1768037258611,0.30144566,136.18,136.12,6.62]
[1768037265913,0.30144566,136.18,136.11,102.9906]
[1768037266118,0.05420619,136.19,136.11,102.9906]
[1768037266317,0.30144566,136.2,136.11,102.9906]
[1768037266521,0.30144566,136.2,136.11,104.14237034]
[1768037266727,0.05367756,136.16,136.11,104.14237034]
[1768037267720,0.05367756,136.16,136.13,6.6196]
[1768037274824,0.30144566,136.19,136.13,6.6196]
[1768037275123,0.30144566,136.19,136.13,6.67104177]
[1768037291942,0.05657337,136.17,136.13,6.67104177]
[1768037308253,0.05657337,136.17,136.14,6.6193]
[1768037310654,0.30144566,136.19,136.14,6.6193]
[1768037315566,0.30505266,136.22,136.15,6.6187]
[1768037315761,5.51458044,136.21,136.15,6.6187]
[1768037316066,0.30505266,136.22,136.15,6.6187]
[1768037316369,5.81961486,136.21,136.17,0.0542362]
[1768037316664,0.30505266,136.21,136.17,0.0542362]
[1768037405362,0.30505266,136.21,136.14,6.6193]
[1768037406668,0.30505266,136.21,136.16,0.05198037]
[1768037406872,0.32019616,136.2,136.16,0.05198037]
[1768037421779,0.32019616,136.19,136.12,6.6201]
[1768037421977,0.37586466,136.19,136.12,6.6201]
[1768037431190,0.37586466,136.19,136.13,6.6198]
[1768037431586,0.32019616,136.19,136.13,6.6198]
[1768037431987,0.0527625,136.17,136.13,6.6198]
[1768037447707,0.36857021,136.17,136.11,86.8]
[1768037448711,0.36857021,136.17,136.12,6.6203]
[1768037460919,0.0527625,136.17,136.12,6.6203]
[1768037464023,0.35611715,136.17,136.12,6.6203]
[1768037464412,0.35611715,136.17,136.11,86.8]
[1768037469424,0.35611715,136.17,136.13,0.04806633]
[1768037472226,0.35611715,136.17,136.1,6.6209]
[1768037474446,0.30335465,136.16,136.1,6.6209]
[1768037474938,0.30335465,136.16,136.08,93.4419]
[1768037475140,0.30335465,136.15,136.08,93.4419]
[1768037475934,0.05198478,136.13,136.08,93.4419]
[1768037476335,0.05198478,136.13,136.09,6.6217]
[1768037487845,0.30335465,136.14,136.09,6.6217]
[1768037488438,0.30335465,136.17,136.09,6.6217]
[1768037489252,0.04822671,136.14,136.09,6.6217]
[1768037490256,0.04822671,136.14,136.1,6.6213]
[1768037516872,0.32329853,136.17,136.1,6.6213]
[1768037517072,0.32329853,136.17,136.11,0.04955555]
[1768037517776,0.30986396,136.19,136.11,6.67015555]
[1768037517971,5.4958204,136.18,136.11,6.67015555]
[1768037518274,0.30986396,136.19,136.11,6.67015555]
[1768037518275,0.30986396,136.19,136.11,6.6206]
[1768037518466,5.49495491,136.18,136.11,6.6206]
[1768037518666,0.30986396,136.19,136.13,0.05647509]
[1768037518867,5.4949532,136.18,136.13,0.05647509]
[1768037519068,0.30986396,136.19,136.13,0.05647509]
[1768037520265,1.15250189,136.22,136.13,6.67617509]
[1768037520266,0.30986396,136.21,136.13,6.67617509]
[1768037520783,0.30986396,136.21,136.13,6.6197]
[1768037521376,0.30986396,136.21,136.16,0.04677769]
[1768037526479,22.94828084,136.33,136.16,0.04677769]
[1768037526480,0.3060705,136.23,136.16,0.04677769]
[1768037526881,0.3060705,136.23,136.14,1.15250189]
[1768037527179,0.3060705,136.23,136.16,1.15250189]
[1768037527373,0.3060705,136.25,136.17,0.04796199]
[1768037527684,0.3060705,136.25,136.18,1.15250189]
[1768037528281,0.3060705,136.25,136.17,7.77020189]
[1768037528481,0.3060705,136.25,136.2,0.04751455]
[1768037550299,0.3060705,136.24,136.17,6.6177]
[1768037550497,0.3060705,136.24,136.15,1.15250189]
[1768037550498,0.35541859,136.24,136.15,7.77100189]
[1768037550789,0.3060705,136.23,136.15,6.6185]
[1768037551697,0.05195457,136.2,136.15,6.6185]
[1768037553991,0.05195457,136.2,136.14,86.82]
[1768037554997,0.35876102,136.2,136.14,86.82]
[1768037556194,0.35876102,136.2,136.14,93.4393]
[1768037564110,0.35876102,136.2,136.15,6.6188]
[1768037564502,0.05195457,136.2,136.15,6.6188]
[1768037571113,0.30680645,136.22,136.16,6.6183]
[1768037571410,0.30680645,136.22,136.16,6.66660217]
[1768037576418,6.91658464,136.24,136.16,6.66660217]
[1768037577824,0.30198464,136.23,136.16,6.66660217]
[1768037581925,0.30198464,136.22,136.16,0.04830217]
[1768037582429,0.30198464,136.2,136.09,1.27779104]
[1768037582620,0.30198464,136.18,136.09,1.27779104]
[1768037583525,0.30198464,136.18,136.09,7.89939104]
[1768037586718,0.30198464,136.18,136.09,6.6216]
[1768037589230,0.30198464,136.18,136.1,6.6211]
[1768037592348,0.30198464,136.18,136.11,6.6207]
[1768037601149,0.30198464,136.18,136.09,6.6215]
[1768037604452,0.30198464,136.18,136.1,6.6211]
[1768037611453,6.91948464,136.18,136.1,6.6211]
[1768037614258,0.04895885,136.15,136.1,6.6211]
[1768037615652,0.37124158,136.15,136.07,88.07833082]
[1768037615950,0.37124158,136.15,136.05,1.79927372]
[1768037616454,0.32228273,136.15,136.05,3.07783938]
[1768037616654,6.94128273,136.15,136.07,6.6227]
[1768037619160,6.94128273,136.15,136.08,6.6222]
[1768037623465,0.32228273,136.15,136.08,6.6222]
[1768037627964,6.94058273,136.17,136.09,6.6215]
[1768037629162,0.32228273,136.16,136.09,6.6215]
[1768037630973,0.32228273,136.16,136.06,104.17837371]
[1768037630974,0.32228273,136.16,136.1,6.6213]
[1768037631859,6.91930087,136.18,136.11,6.6208]
[1768037632060,0.30150087,136.18,136.11,6.6208]
[1768037645172,6.617,136.19,136.11,6.6208]
[1768037645378,5.44446036,136.18,136.11,6.6208]
[1768037645567,6.93400585,136.19,136.11,6.6208]
[1768037645766,5.44437365,136.18,136.11,6.6208]
[1768037645970,6.93400585,136.19,136.11,6.6208]
[1768037646171,5.44437742,136.18,136.11,6.6208]
[1768037646374,6.93400585,136.19,136.11,6.6208]
[1768037646575,5.4442641,136.18,136.11,6.6208]
[1768037646773,6.93400585,136.19,136.11,6.6208]
[1768037647071,5.44426787,136.18,136.11,6.6208]
[1768037647270,6.93400585,136.19,136.11,6.6208]
[1768037647476,5.4441646,136.18,136.11,6.6208]
[1768037647773,0.31700585,136.18,136.11,6.6208]
[1768037651682,0.31700585,136.2,136.12,6.6202]
[1768037651977,5.45371994,136.19,136.12,6.6202]
[1768037652181,0.31700585,136.2,136.12,6.6202]
[1768037652382,5.77003289,136.19,136.12,6.6202]
[1768037652576,0.31700585,136.19,136.12,6.6202]
[1768037653375,0.31700585,136.19,136.13,6.6198]
[1768037655077,0.31700585,136.21,136.14,6.6193]
[1768037655282,5.4517858,136.2,136.14,6.6193]
[1768037655480,0.31700585,136.21,136.14,6.6193]
[1768037655780,5.45101143,136.2,136.14,6.6193]
[1768037655984,0.31700585,136.21,136.14,6.6193]
[1768037656175,5.45101143,136.2,136.14,6.6193]
[1768037656371,0.31700585,136.21,136.14,6.6193]
[1768037656575,5.45027141,136.2,136.14,6.6193]
[1768037656784,0.31700585,136.21,136.14,6.6193]
[1768037656984,5.45027141,136.2,136.14,6.6193]
[1768037657284,0.31700585,136.21,136.14,6.6193]
[1768037657582,5.4495965,136.2,136.14,6.6193]
[1768037657785,0.31700585,136.21,136.14,6.6193]
[1768037657986,5.4495965,136.2,136.14,6.6193]
[1768037658182,0.31700585,136.21,136.14,6.6193]
[1768037658482,5.44897818,136.2,136.14,6.6193]
[1768037658685,0.31700585,136.21,136.14,6.6193]
[1768037658881,5.44897818,136.2,136.14,6.6193]
[1768037659182,0.31700585,136.21,136.14,6.6193]
[1768037664586,6.93300585,136.21,136.14,6.6193]
[1768037687218,5.47212688,136.2,136.14,6.6193]
[1768037687409,6.93300585,136.21,136.14,6.6193]
[1768037687609,5.47212688,136.2,136.14,6.6193]
[1768037687907,6.93300585,136.21,136.14,6.6193]
[1768037688108,5.47212688,136.2,136.14,6.6193]
[1768037688308,6.93300585,136.21,136.14,6.6193]
[1768037688507,5.47265741,136.2,136.14,6.6193]
[1768037688708,6.93300585,136.21,136.14,6.6193]
[1768037688916,5.47265741,136.2,136.14,6.6193]
[1768037689114,6.93300585,136.21,136.14,6.6193]
[1768037689318,5.47326648,136.2,136.14,6.6193]
[1768037689614,6.93300585,136.21,136.14,6.6193]
[1768037689812,5.47326648,136.2,136.14,6.6193]
[1768037690013,6.93300585,136.21,136.14,6.6193]
[1768037690214,5.47326648,136.2,136.14,6.6193]
[1768037690414,6.93300585,136.21,136.14,6.6193]
[1768037690714,5.47397142,136.2,136.14,6.6193]
[1768037690914,6.93300585,136.21,136.14,6.6193]
[1768037691211,5.47397142,136.2,136.14,6.6193]
[1768037691512,6.93300585,136.21,136.14,6.6193]
[1768037691813,5.47447619,136.2,136.14,6.6193]
[1768037692112,6.93300585,136.21,136.14,6.6193]
[1768037692315,5.47501338,136.2,136.14,6.6193]
[1768037692512,6.93300585,136.21,136.14,6.6193]
[1768037692717,5.47507098,136.2,136.14,6.6193]
[1768037693018,0.32038824,136.2,136.14,6.6193]
[1768037723439,0.32038824,136.2,136.12,6.6199]
[1768037729760,0.32038824,136.2,136.13,6.6198]
[1768037747779,0.32038824,136.2,136.14,6.6193]
[1768037763905,6.616,136.21,136.14,6.6193]
[1768037764202,5.46245276,136.2,136.14,6.6193]
[1768037764403,6.616,136.21,136.14,6.6193]
[1768037764604,5.46244725,136.2,136.14,6.6193]
[1768037764804,6.616,136.21,136.14,6.6193]
[1768037765100,5.46244725,136.2,136.14,6.6193]
[1768037765294,6.616,136.21,136.14,6.6193]
[1768037765498,5.46244322,136.2,136.14,6.6193]
[1768037765799,6.616,136.21,136.14,6.6193]
[1768037766106,5.46244322,136.2,136.14,6.6193]
[1768037766300,6.9473438,136.21,136.14,6.6193]
[1768037766501,5.46252386,136.2,136.14,6.6193]
[1768037766703,6.9473438,136.21,136.14,6.6193]
[1768037766994,5.46252386,136.2,136.14,6.6193]
[1768037767199,6.9473438,136.21,136.14,6.6193]
[1768037767399,5.46260517,136.2,136.14,6.6193]
[1768037767601,6.9473438,136.21,136.14,6.6193]
[1768037767801,5.46261625,136.2,136.14,6.6193]
[1768037768001,6.9473438,136.21,136.14,6.6193]
[1768037768207,5.46261625,136.2,136.14,6.6193]
[1768037768506,6.9473438,136.21,136.14,6.6193]
[1768037768700,5.46261581,136.2,136.14,6.6193]
[1768037768898,6.9473438,136.21,136.14,6.6193]
[1768037769102,5.46261581,136.2,136.14,6.6193]
[1768037769297,6.9473438,136.21,136.14,6.6193]
[1768037769501,5.46272478,136.2,136.14,6.6193]
[1768037769708,6.9473438,136.21,136.14,6.6193]
[1768037769899,5.48595371,136.2,136.14,6.6193]
[1768037770106,6.9473438,136.21,136.14,6.6193]
[1768037770304,5.48607363,136.2,136.14,6.6193]
[1768037770506,6.9473438,136.21,136.14,6.6193]
[1768037770805,5.4860834,136.2,136.14,6.6193]
[1768037771005,6.9473438,136.21,136.14,6.6193]
[1768037771306,5.4860834,136.2,136.14,6.6193]
[1768037771513,6.9473438,136.21,136.14,6.6193]
[1768037771812,5.48624316,136.2,136.14,6.6193]
[1768037772012,6.9473438,136.21,136.14,6.6193]
[1768037772310,5.48645096,136.2,136.14,6.6193]
[1768037772501,6.9473438,136.21,136.14,6.6193]
[1768037772708,5.4864572,136.2,136.14,6.6193]
[1768037772911,6.9473438,136.21,136.14,6.6193]
[1768037773104,5.4864572,136.2,136.14,6.6193]
[1768037773305,6.9473438,136.21,136.14,6.6193]
[1768037773506,5.48647157,136.2,136.14,6.6193]
[1768037773810,8.09856605,136.23,136.15,6.6188]
[1768037774014,5.48645987,136.22,136.15,6.6188]
[1768037774314,5.48645987,136.21,136.15,6.6188]
[1768037774508,8.09856605,136.23,136.15,6.6188]
[1768037774714,5.4861782,136.22,136.15,6.6188]
[1768037775011,5.4861782,136.21,136.15,6.6188]
[1768037775217,8.09856605,136.23,136.15,6.6188]
[1768037775411,5.48288762,136.22,136.15,6.6188]
[1768037775613,5.48288762,136.21,136.15,6.6188]
[1768037775808,0.3313438,136.22,136.15,6.6188]
[1768037776015,5.4832794,136.21,136.15,6.6188]
[1768037776310,0.3313438,136.22,136.15,6.6188]
[1768037776510,5.48268553,136.21,136.15,6.6188]
[1768037776711,0.3313438,136.22,136.16,6.6183]
[1768037776918,5.48268553,136.21,136.16,6.6183]
[1768037777118,0.3313438,136.22,136.16,6.6183]
[1768037780021,0.3313438,136.24,136.17,6.6178]
[1768037780920,0.3313438,136.24,136.18,6.6172]
[1768037781117,8.09706605,136.26,136.18,6.6172]
[1768037781321,5.4761733,136.25,136.18,6.6172]
[1768037781613,8.09706605,136.26,136.18,6.6172]
[1768037781818,5.47428905,136.25,136.18,6.6172]
[1768037782019,8.09706605,136.26,136.18,6.6172]
[1768037782220,5.47428905,136.25,136.18,6.6172]
[1768037782421,8.09706605,136.26,136.18,6.6172]
[1768037782621,5.47271366,136.25,136.18,6.6172]
[1768037782822,8.09706605,136.26,136.18,6.6172]
[1768037783027,5.47271366,136.25,136.18,6.6172]
[1768037783330,8.09706605,136.26,136.18,6.6172]
[1768037783523,5.47139936,136.25,136.18,6.6172]
[1768037783722,8.09706605,136.26,136.18,6.6172]
[1768037784022,5.47139936,136.25,136.18,6.6172]
[1768037784224,8.09706605,136.26,136.18,6.6172]
[1768037784425,5.80162006,136.25,136.18,6.6172]
[1768037784621,0.3313438,136.25,136.18,6.6172]
[1768037786022,0.04792995,136.23,136.18,6.6172]
[1768037796439,0.04792995,136.23,136.19,6.6169]
[1768037820355,6.91773336,136.28,136.2,6.6162]
[1768037820662,0.30483336,136.27,136.2,6.66819233]
[1768037821359,0.30483336,136.27,136.21,6.6157]
[1768037822559,0.30483336,136.3,136.21,6.6157]
[1768037822861,5.75213126,136.29,136.21,6.6157]
[1768037823063,0.30483336,136.29,136.21,6.6157]
[1768037823463,0.30483336,136.29,136.24,0.04966126]
[1768037823663,0.31473699,136.28,136.24,0.04966126]
[1768037833070,1.77473699,136.28,136.24,0.04966126]
[1768037835572,0.31473699,136.27,136.24,0.04966126]
[1768037868000,6.6123,136.29,136.24,0.04966126]
[1768037868202,5.4271184,136.28,136.24,0.04966126]
[1768037868401,6.6123,136.29,136.24,0.04966126]
[1768037868702,5.4271184,136.28,136.24,0.04966126]
[1768037868902,6.6121,136.29,136.24,0.04966126]
[1768037869102,5.42712216,136.28,136.24,0.04966126]
[1768037869307,6.6121,136.29,136.24,0.04966126]
[1768037869507,5.42712444,136.28,136.24,0.04966126]
[1768037869710,6.6121,136.29,136.24,0.04966126]
[1768037869908,5.42712444,136.28,136.24,0.04966126]
[1768037870108,6.6121,136.29,136.24,0.04966126]
[1768037870308,5.42713091,136.28,136.24,0.04966126]
[1768037870510,6.6121,136.29,136.24,0.04966126]
[1768037870808,5.42712922,136.28,136.24,0.04966126]
[1768037871106,6.6121,136.29,136.24,0.04966126]
[1768037871297,5.42713195,136.28,136.24,0.04966126]
[1768037871494,6.6121,136.29,136.24,0.04966126]
[1768037871694,5.42713195,136.28,136.24,0.04966126]
[1768037871899,6.6121,136.29,136.24,0.04966126]
[1768037872110,5.42713195,136.28,136.24,0.04966126]
[1768037872310,6.6121,136.29,136.24,0.04966126]
[1768037872504,5.4271347,136.28,136.24,0.04966126]
[1768037872703,6.6121,136.29,136.24,0.04966126]
[1768037873004,5.4271347,136.28,136.24,0.04966126]
[1768037873204,6.6121,136.29,136.24,0.04966126]
[1768037873405,5.42713747,136.28,136.24,0.04966126]
[1768037873609,6.6121,136.29,136.24,0.04966126]
[1768037873907,5.42713747,136.28,136.24,0.04966126]
[1768037874207,6.6121,136.29,136.24,0.04966126]
[1768037874411,5.42714027,136.28,136.24,0.04966126]
[1768037874608,6.6121,136.29,136.24,0.04966126]
[1768037874912,5.42714027,136.28,136.24,0.04966126]
[1768037875211,6.6121,136.29,136.24,0.04966126]
[1768037875411,5.42714309,136.28,136.24,0.04966126]
[1768037875613,6.6121,136.29,136.24,0.04966126]
[1768037875812,5.42714309,136.28,136.24,0.04966126]
[1768037876108,6.6121,136.29,136.24,0.04966126]
[1768037876408,5.42714593,136.28,136.24,0.04966126]
[1768037876609,6.6121,136.29,136.24,0.04966126]
[1768037876809,5.42714595,136.28,136.24,0.04966126]
[1768037877006,6.6121,136.29,136.24,0.04966126]
[1768037877207,5.42714882,136.28,136.24,0.04966126]
[1768037877400,6.6121,136.29,136.24,0.04966126]
[1768037877601,5.42714882,136.28,136.24,0.04966126]
[1768037877800,6.6121,136.29,136.24,0.04966126]
[1768037877998,5.42714882,136.28,136.24,0.04966126]
[1768037878202,6.6121,136.29,136.24,0.04966126]
[1768037878404,5.4272351,136.28,136.24,0.04966126]
[1768037878700,6.6121,136.29,136.24,0.04966126]
[1768037878897,5.4272351,136.28,136.24,0.04966126]
[1768037879109,6.6121,136.29,136.24,0.04966126]
[1768037879309,5.42732915,136.28,136.24,0.04966126]
[1768037879511,6.6121,136.29,136.24,0.04966126]
[1768037879702,5.42732915,136.28,136.24,0.04966126]
[1768037879903,6.6121,136.29,136.24,0.04966126]
[1768037880102,5.42732915,136.28,136.24,0.04966126]
[1768037880398,6.6121,136.29,136.24,0.04966126]
[1768037880597,5.4274181,136.28,136.24,0.04966126]
[1768037880808,6.6121,136.29,136.24,0.04966126]
[1768037881104,5.4274181,136.28,136.24,0.04966126]
[1768037881306,6.6121,136.29,136.24,0.04966126]
[1768037881500,5.42754254,136.28,136.24,0.04966126]
[1768037881707,6.6121,136.29,136.24,0.04966126]
[1768037881907,5.42754254,136.28,136.24,0.04966126]
[1768037882108,6.6121,136.29,136.24,0.04966126]
[1768037882310,5.42767026,136.28,136.24,0.04966126]
[1768037882513,6.6121,136.29,136.24,0.04966126]
[1768037882721,5.42768601,136.28,136.24,0.04966126]
[1768037882903,6.6121,136.29,136.24,0.04966126]
[1768037883105,5.42768601,136.28,136.24,0.04966126]
[1768037883309,6.6121,136.29,136.24,0.04966126]
[1768037883510,5.42785526,136.28,136.24,0.04966126]
[1768037883816,6.6121,136.29,136.24,0.04966126]
[1768037884007,5.42785526,136.28,136.24,0.04966126]
[1768037884203,6.6121,136.29,136.24,0.04966126]
[1768037884407,12.0406568,136.28,136.24,0.04966126]
[1768037884711,6.6126,136.28,136.24,0.04966126]
[1768037891210,6.612,136.3,136.24,0.04966126]
[1768037891412,5.41106397,136.29,136.24,0.04966126]
[1768037891718,5.41106397,136.28,136.24,0.04966126]
[1768037891920,6.612,136.3,136.24,0.04966126]
[1768037892111,5.41106228,136.29,136.24,0.04966126]
[1768037892310,5.41106228,136.28,136.24,0.04966126]
[1768037892512,6.612,136.3,136.24,0.04966126]
[1768037892708,5.41105455,136.29,136.24,0.04966126]
[1768037892913,5.41105455,136.28,136.24,0.04966126]
[1768037893111,6.612,136.3,136.24,0.04966126]
[1768037893314,5.4110416,136.29,136.24,0.04966126]
[1768037893517,5.4110416,136.28,136.24,0.04966126]
[1768037893715,6.612,136.3,136.24,0.04966126]
[1768037894023,12.02324795,136.29,136.24,0.04966126]
[1768037894319,5.41104795,136.28,136.24,0.04966126]
[1768037894620,1.15040826,136.32,136.24,0.04966126]
[1768037894822,5.41066021,136.31,136.24,0.04966126]
[1768037895021,5.41066021,136.3,136.24,0.04966126]
[1768037895320,5.41066021,136.29,136.24,0.04966126]
[1768037895516,6.6115,136.31,136.24,0.04966126]
[1768037895818,5.41050229,136.3,136.24,0.04966126]
[1768037896023,0.31295942,136.28,136.24,0.04966126]
[1768037918041,6.6115,136.31,136.24,1.50966126]
[1768037918348,6.6115,136.31,136.24,0.04966126]
[1768037920147,0.31166645,136.3,136.24,0.04966126]
[1768037928353,0.31166645,136.3,136.24,6.66406126]
[1768037930356,0.31166645,136.3,136.25,0.09997891]
[1768037930754,0.31166645,136.3,136.24,6.66406126]
[1768037931148,0.33280559,136.32,136.26,0.09990025]
[1768037932047,0.33280559,136.32,136.28,0.05624123]
[1768037932555,6.94350559,136.32,136.28,0.05624123]
[1768037933859,0.33280559,136.32,136.28,0.05624123]
[1768037944264,6.94350559,136.32,136.28,0.05624123]
[1768037944460,0.30388052,136.31,136.28,0.05624123]
[1768037944770,0.30388052,136.31,136.22,6.6151]
[1768037944968,0.30388052,136.29,136.22,6.6151]
[1768037945463,0.30388052,136.29,136.21,0.09982635]
[1768037946266,0.04755424,136.26,136.21,0.09982635]
[1768037953877,0.04755424,136.26,136.21,6.71572635]
[1768037956674,0.04755424,136.26,136.22,0.09982635]
[1768037957375,0.30388052,136.29,136.23,0.1467631]
[1768037957674,0.30388052,136.31,136.24,0.09982635]
[1768037958676,0.30388052,136.31,136.24,6.71422635]
[1768037958876,0.30388052,136.31,136.26,0.04719656]
[1768037970785,0.30388052,136.3,136.26,0.04719656]
[1768037980685,0.30388052,136.3,136.23,6.6149]
[1768037980893,0.32456691,136.28,136.23,6.6149]
[1768037983691,0.32456691,136.28,136.22,0.10058918]
[1768037984888,0.32456691,136.28,136.23,6.6149]
[1768037985194,0.32456691,136.28,136.22,0.10058918]
[1768037986890,0.32456691,136.28,136.21,6.6156]
[1768037987790,0.37500201,136.26,136.21,6.6156]
[1768037989896,0.37500201,136.26,136.21,6.76338574]
[1768037990886,0.0504351,136.26,136.22,0.14762926]
[1768037991589,0.0050562,136.26,136.23,0.14762926]
[1768037992894,0.0050562,136.26,136.23,0.19423312]
[1768037997798,0.0050562,136.26,136.23,6.80913312]
[1768037998099,0.0050562,136.26,136.24,0.14762926]
[1768037999600,0.0050562,136.26,136.24,6.76202926]
[1768038000902,0.0050562,136.26,136.25,0.14762926]
[1768038026926,0.32810303,136.34,136.27,0.14701578]
[1768038027226,6.36702496,136.33,136.27,0.14701578]
[1768038027422,6.36702496,136.32,136.27,0.14701578]
[1768038027613,6.03892193,136.31,136.27,0.14701578]
[1768038027818,0.32810303,136.32,136.27,0.14701578]
[1768038028018,6.03845256,136.31,136.27,0.14701578]
[1768038028322,0.32810303,136.32,136.28,0.05201913]
[1768038028520,6.03805972,136.31,136.28,0.05201913]
[1768038028722,0.32810303,136.32,136.28,0.05201913]
[1768038028921,6.03805972,136.31,136.28,0.05201913]
[1768038029122,0.32810303,136.32,136.28,0.05201913]
[1768038029416,6.03786025,136.31,136.28,0.05201913]
[1768038029623,0.32810303,136.32,136.28,0.05201913]
[1768038029823,6.03786025,136.31,136.28,0.05201913]
[1768038030027,0.32810303,136.32,136.28,0.05201913]
[1768038030224,1.78810303,136.32,136.28,0.05201913]
[1768038030424,0.32810303,136.32,136.28,0.05201913]
[1768038035226,6.346234,136.31,136.28,0.05201913]
[1768038035424,0.30457569,136.31,136.28,0.05201913]
[1768038052849,0.30457569,136.31,136.25,93.3539]
[1768038053050,0.356755,136.31,136.25,93.3539]
[1768038053445,0.356755,136.31,136.23,93.3346]
[1768038053446,0.3210966,136.29,136.23,93.3346]
[1768038054550,0.04765359,136.27,136.23,93.3346]
[1768038054950,0.04765359,136.27,136.23,93.53385901]
[1768038062350,0.04765359,136.27,136.25,0.19925901]
[1768038062855,0.3210966,136.3,136.25,6.81315901]
[1768038064256,0.3210966,136.3,136.25,6.6139]
[1768038064548,0.3210966,136.3,136.25,6.81313597]
[1768038064955,0.31524571,136.32,136.26,0.19923597]
[1768038065359,0.31524571,136.32,136.26,0.24700588]
[1768038069756,0.31524571,136.32,136.26,0.04776991]
[1768038069960,0.31524571,136.3,136.26,0.04776991]
[1768038073549,6.20849189,136.29,136.26,0.04776991]
[1768038073753,0.31524571,136.29,136.26,0.04776991]
[1768038087072,0.31524571,136.29,136.23,86.72]
[1768038087370,0.36650195,136.29,136.23,86.72]
[1768038087570,0.36650195,136.29,136.23,86.96700588]
[1768038088671,0.36650195,136.29,136.23,93.58190588]
[1768038091875,0.36650195,136.29,136.23,86.96700588]
[1768038092174,0.36650195,136.29,136.23,86.72]
[1768038092475,0.31524571,136.27,136.23,86.72]
[1768038096491,0.3753112,136.29,136.24,0.24692192]
[1768038097496,0.05125624,136.29,136.24,0.24692192]
[1768038097681,0.05125624,136.29,136.25,0.24692192]
[1768038101303,0.3753112,136.29,136.24,6.6144]
[1768038102092,0.3753112,136.29,136.24,6.86132192]
[1768038107598,0.3753112,136.29,136.24,0.24692192]